[Event "Titled Tuesday Blitz October 25 Early 2022"]
[White "Melikyan, Gnel"]
[Black "Wirig, Anthony"]
[WhiteFideId "54109990"]
[BlackFideId "615013"]
[WhiteElo "2138"]
[BlackElo "2474"]
[Result "0-1"]
[Round "02"]
[TimeControl "180+1"]
[Date "2022.10.25"]
[WhiteClock "0:01:19"]
[BlackClock "0:00:43"]

1. e4 {[%clk 0:02:59]}  c5 {[%clk 0:02:59]} 2. Nf3 {[%clk 0:02:59]}  e6 {[%clk 0:02:58]} 3. d4 {[%clk 0:02:59]}  cxd4 {[%clk 0:02:59]} 4. Nxd4 {[%clk 0:03:00]}  Nf6 {[%clk 0:03:00]} 5. Nc3 {[%clk 0:03:00]}  Nc6 {[%clk 0:03:00]} 6. Nxc6 {[%clk 0:02:59]}  bxc6 {[%clk 0:03:01]} 7. Bd3 {[%clk 0:02:59]}  e5 {[%clk 0:03:00]} 8. O-O {[%clk 0:03:00]}  Bc5 {[%clk 0:03:00]} 9. Qe2 {[%clk 0:02:57]}  O-O {[%clk 0:02:59]} 10. Rd1 {[%clk 0:02:57]}  d6 {[%clk 0:02:55]} 11. Na4 {[%clk 0:02:56]}  Bd4 {[%clk 0:02:52]} 12. c3 {[%clk 0:02:56]}  Bg4 {[%clk 0:02:50]} 13. Qd2 {[%clk 0:02:50]}  Bxd1 {[%clk 0:02:49]} 14. Qxd1 {[%clk 0:02:51]}  Bb6 {[%clk 0:02:47]} 15. Nxb6 {[%clk 0:02:51]}  axb6 {[%clk 0:02:42]} 16. Bg5 {[%clk 0:02:43]}  h6 {[%clk 0:02:42]} 17. Bh4 {[%clk 0:02:44]}  g5 {[%clk 0:02:42]} 18. Bg3 {[%clk 0:02:44]}  Kg7 {[%clk 0:02:40]} 19. Qf3 {[%clk 0:02:38]}  Qd7 {[%clk 0:02:39]} 20. a3 {[%clk 0:02:37]}  Qg4 {[%clk 0:02:34]} 21. Qe3 {[%clk 0:02:35]}  b5 {[%clk 0:02:28]} 22. f3 {[%clk 0:02:32]}  Qe6 {[%clk 0:02:26]} 23. Re1 {[%clk 0:02:31]}  Nh5 {[%clk 0:02:23]} 24. Bf2 {[%clk 0:02:30]}  Nf4 {[%clk 0:02:24]} 25. Bf1 {[%clk 0:02:30]}  Rfe8 {[%clk 0:02:22]} 26. Qd2 {[%clk 0:02:27]}  Rad8 {[%clk 0:02:19]} 27. Qc2 {[%clk 0:02:25]}  d5 {[%clk 0:02:17]} 28. exd5 {[%clk 0:02:22]}  Qxd5 {[%clk 0:02:15]} 29. Be3 {[%clk 0:02:14]}  Qd6 {[%clk 0:01:51]} 30. g3 {[%clk 0:02:08]}  Nd5 {[%clk 0:01:45]} 31. Bf2 {[%clk 0:02:06]}  Qf6 {[%clk 0:01:41]} 32. Kg2 {[%clk 0:02:03]}  Qg6 {[%clk 0:01:32]} 33. Qxg6+ {[%clk 0:01:54]}  Kxg6 {[%clk 0:01:29]} 34. c4 {[%clk 0:01:54]}  bxc4 {[%clk 0:01:20]} 35. Bxc4 {[%clk 0:01:55]}  f5 {[%clk 0:01:18]} 36. Rc1 {[%clk 0:01:50]}  e4 {[%clk 0:01:14]} 37. fxe4 {[%clk 0:01:49]}  fxe4 {[%clk 0:01:14]} 38. Be2 {[%clk 0:01:48]}  Re6 {[%clk 0:00:55]} 39. Bg4 {[%clk 0:01:48]}  Rf6 {[%clk 0:00:55]} 40. Bd4 {[%clk 0:01:48]}  Nf4+ {[%clk 0:00:53]} 41. gxf4 {[%clk 0:01:48]}  Rxd4 {[%clk 0:00:54]} 42. f5+ {[%clk 0:01:41]}  Kg7 {[%clk 0:00:54]} 43. Rc2 {[%clk 0:01:41]}  Rfd6 {[%clk 0:00:51]} 44. Kf1 {[%clk 0:01:35]}  Rd2 {[%clk 0:00:46]} 45. Rxd2 {[%clk 0:01:24]}  Rxd2 {[%clk 0:00:45]} 46. b4 {[%clk 0:01:21]}  Ra2 {[%clk 0:00:44]} 47. Bh3 {[%clk 0:01:19]}  Kf6 {[%clk 0:00:43]} 0-1


[Site "https://www.chess.com"]

[Event "Titled Tuesday Blitz October 25 Early 2022"]
[White "Predke, Alexandr"]
[Black "Janaszak, Dawid"]
[WhiteFideId "24107581"]
[BlackFideId "1119206"]
[WhiteElo "2614"]
[BlackElo "2226"]
[Result "1-0"]
[Round "02"]
[TimeControl "180+1"]
[Date "2022.10.25"]
[WhiteClock "0:00:20"]
[BlackClock "0:00:01"]

1. Nf3 {[%clk 0:03:00]}  g6 {[%clk 0:02:58]} 2. e4 {[%clk 0:02:59]}  c5 {[%clk 0:02:57]} 3. d4 {[%clk 0:02:57]}  cxd4 {[%clk 0:02:58]} 4. c3 {[%clk 0:02:57]}  Nf6 {[%clk 0:02:50]} 5. e5 {[%clk 0:02:56]}  Nd5 {[%clk 0:02:50]} 6. Bc4 {[%clk 0:02:54]}  Nb6 {[%clk 0:02:46]} 7. Bb3 {[%clk 0:02:48]}  d5 {[%clk 0:02:46]} 8. exd6 {[%clk 0:02:42]}  Qxd6 {[%clk 0:02:44]} 9. cxd4 {[%clk 0:02:39]}  Bg7 {[%clk 0:02:43]} 10. O-O {[%clk 0:02:39]}  O-O {[%clk 0:02:42]} 11. h3 {[%clk 0:02:34]}  Nc6 {[%clk 0:02:42]} 12. Be3 {[%clk 0:02:24]}  Be6 {[%clk 0:02:38]} 13. Nc3 {[%clk 0:02:23]}  Bxb3 {[%clk 0:02:34]} 14. Qxb3 {[%clk 0:02:22]}  e6 {[%clk 0:02:25]} 15. Ne4 {[%clk 0:02:20]}  Qb4 {[%clk 0:02:24]} 16. Nc5 {[%clk 0:02:15]}  Qxb3 {[%clk 0:01:57]} 17. axb3 {[%clk 0:02:16]}  Nd5 {[%clk 0:01:49]} 18. Nxb7 {[%clk 0:02:14]}  Rfb8 {[%clk 0:01:43]} 19. Nc5 {[%clk 0:02:11]}  Bf8 {[%clk 0:01:34]} 20. Rfc1 {[%clk 0:01:49]}  Ncb4 {[%clk 0:01:33]} 21. Nd7 {[%clk 0:01:45]}  Rb7 {[%clk 0:01:28]} 22. Nxf8 {[%clk 0:01:45]}  Kxf8 {[%clk 0:01:29]} 23. Bh6+ {[%clk 0:01:36]}  Ke7 {[%clk 0:01:28]} 24. Ne5 {[%clk 0:01:17]}  f6 {[%clk 0:01:23]} 25. Nc6+ {[%clk 0:01:10]}  Nxc6 {[%clk 0:01:22]} 26. Rxc6 {[%clk 0:01:11]}  Rxb3 {[%clk 0:00:53]} 27. Re1 {[%clk 0:01:08]}  g5 {[%clk 0:00:23]} 28. Rexe6+ {[%clk 0:01:00]}  Kf7 {[%clk 0:00:23]} 29. Red6 {[%clk 0:00:52]}  Rb5 {[%clk 0:00:22]} 30. h4 {[%clk 0:00:42]}  Rg8 {[%clk 0:00:12]} 31. hxg5 {[%clk 0:00:40]}  Rg6 {[%clk 0:00:05]} 32. Rd7+ {[%clk 0:00:38]}  Ke8 {[%clk 0:00:05]} 33. Rxh7 {[%clk 0:00:36]}  Nb6 {[%clk 0:00:01]} 34. Re6+ {[%clk 0:00:32]}  Kd8 {[%clk 0:00:01]} 35. Rxf6 {[%clk 0:00:31]}  Rxf6 {[%clk 0:00:01]} 36. gxf6 {[%clk 0:00:31]}  Rf5 {[%clk 0:00:01]} 37. f7 {[%clk 0:00:29]}  Nd7 {[%clk 0:00:02]} 38. f8=Q+ {[%clk 0:00:21]}  Nxf8 {[%clk 0:00:01]} 39. Rh8 {[%clk 0:00:20]} 1-0


[Site "https://www.chess.com"]

[Event "Titled Tuesday Blitz October 25 Early 2022"]
[White "Salgado Lopez, Ivan"]
[Black "Suleymanli, Suleyman"]
[WhiteFideId "2257327"]
[BlackFideId "13416375"]
[WhiteElo "2594"]
[BlackElo "2204"]
[Result "1-0"]
[Round "02"]
[TimeControl "180+1"]
[Date "2022.10.25"]
[WhiteClock "0:00:06"]
[BlackClock "0:00:04"]

1. d4 {[%clk 0:03:00]}  d5 {[%clk 0:02:59]} 2. Nf3 {[%clk 0:03:00]}  Bf5 {[%clk 0:02:54]} 3. c4 {[%clk 0:02:59]}  e6 {[%clk 0:02:53]} 4. Nc3 {[%clk 0:02:58]}  Nf6 {[%clk 0:02:52]} 5. Nh4 {[%clk 0:02:58]}  Be4 {[%clk 0:02:46]} 6. e3 {[%clk 0:02:51]}  c6 {[%clk 0:02:44]} 7. f3 {[%clk 0:02:43]}  Bg6 {[%clk 0:02:41]} 8. Bd2 {[%clk 0:02:39]}  Be7 {[%clk 0:02:32]} 9. Nxg6 {[%clk 0:02:39]}  hxg6 {[%clk 0:02:31]} 10. Qc2 {[%clk 0:02:39]}  Na6 {[%clk 0:02:29]} 11. cxd5 {[%clk 0:02:28]}  exd5 {[%clk 0:02:29]} 12. Bxa6 {[%clk 0:02:26]}  bxa6 {[%clk 0:02:30]} 13. O-O-O {[%clk 0:02:25]}  Rb8 {[%clk 0:02:26]} 14. Kb1 {[%clk 0:02:21]}  Qb6 {[%clk 0:02:20]} 15. Na4 {[%clk 0:02:19]}  Qb5 {[%clk 0:02:17]} 16. Rc1 {[%clk 0:02:19]}  O-O {[%clk 0:02:15]} 17. Ka1 {[%clk 0:02:19]}  Rfc8 {[%clk 0:02:12]} 18. h4 {[%clk 0:02:17]}  Nd7 {[%clk 0:02:08]} 19. h5 {[%clk 0:02:16]}  gxh5 {[%clk 0:02:06]} 20. Rxh5 {[%clk 0:02:11]}  g6 {[%clk 0:02:06]} 21. Rh6 {[%clk 0:02:06]}  Bf8 {[%clk 0:01:59]} 22. Rh2 {[%clk 0:01:49]}  c5 {[%clk 0:01:56]} 23. dxc5 {[%clk 0:01:32]}  Nxc5 {[%clk 0:01:50]} 24. Nc3 {[%clk 0:01:30]}  Qd3 {[%clk 0:01:47]} 25. Rhh1 {[%clk 0:01:05]}  Bg7 {[%clk 0:01:45]} 26. Rhd1 {[%clk 0:01:04]}  Qc4 {[%clk 0:01:03]} 27. Be1 {[%clk 0:00:50]}  d4 {[%clk 0:00:55]} 28. exd4 {[%clk 0:00:44]}  Bxd4 {[%clk 0:00:56]} 29. Rb1 {[%clk 0:00:22]}  Rb5 {[%clk 0:00:29]} 30. Rxd4 {[%clk 0:00:11]}  Qxd4 {[%clk 0:00:25]} 31. Nxb5 {[%clk 0:00:11]}  axb5 {[%clk 0:00:26]} 32. Bc3 {[%clk 0:00:11]}  Qa4 {[%clk 0:00:26]} 33. Rh1 {[%clk 0:00:07]}  Kf8 {[%clk 0:00:06]} 34. Qe2 {[%clk 0:00:07]}  f6 {[%clk 0:00:04]} 35. Bxf6 {[%clk 0:00:07]}  Nb3+ {[%clk 0:00:04]} 36. Kb1 {[%clk 0:00:07]}  Qc4 {[%clk 0:00:04]} 37. Qe7+ {[%clk 0:00:06]}  Kg8 {[%clk 0:00:04]} 38. Qg7# {[%clk 0:00:06]} 1-0


[Site "https://www.chess.com"]

[Event "Titled Tuesday Blitz October 25 Early 2022"]
[White "Sanal, Vahap"]
[Black "Danielyan, Vahe"]
[WhiteFideId "6300545"]
[BlackFideId "13304828"]
[WhiteElo "2574"]
[BlackElo "2421"]
[Result "1-0"]
[Round "02"]
[TimeControl "180+1"]
[Date "2022.10.25"]
[WhiteClock "0:00:40"]
[BlackClock "0:00:02"]

1. Nf3 {[%clk 0:02:56]}  d5 {[%clk 0:02:58]} 2. b3 {[%clk 0:02:56]}  Bg4 {[%clk 0:02:58]} 3. Bb2 {[%clk 0:02:56]}  Bxf3 {[%clk 0:02:58]} 4. exf3 {[%clk 0:02:56]}  Nf6 {[%clk 0:02:57]} 5. g3 {[%clk 0:02:57]}  Nbd7 {[%clk 0:02:57]} 6. Bg2 {[%clk 0:02:57]}  e6 {[%clk 0:02:57]} 7. O-O {[%clk 0:02:58]}  Bd6 {[%clk 0:02:58]} 8. f4 {[%clk 0:02:58]}  O-O {[%clk 0:02:58]} 9. d3 {[%clk 0:02:59]}  a5 {[%clk 0:02:58]} 10. a3 {[%clk 0:02:59]}  c6 {[%clk 0:02:58]} 11. Nd2 {[%clk 0:02:59]}  Qe7 {[%clk 0:02:58]} 12. Nf3 {[%clk 0:02:59]}  c5 {[%clk 0:02:39]} 13. Re1 {[%clk 0:02:59]}  a4 {[%clk 0:02:39]} 14. bxa4 {[%clk 0:02:48]}  Nb6 {[%clk 0:02:32]} 15. Rb1 {[%clk 0:02:44]}  Nxa4 {[%clk 0:02:32]} 16. Ba1 {[%clk 0:02:44]}  d4 {[%clk 0:02:26]} 17. Ne5 {[%clk 0:02:39]}  Rfb8 {[%clk 0:02:10]} 18. Nc4 {[%clk 0:02:36]}  Ra7 {[%clk 0:02:05]} 19. Rb5 {[%clk 0:02:27]}  Qd7 {[%clk 0:01:55]} 20. Qb1 {[%clk 0:02:24]}  Be7 {[%clk 0:01:55]} 21. Ne5 {[%clk 0:02:23]}  Qc7 {[%clk 0:01:50]} 22. Nc6 {[%clk 0:02:22]}  bxc6 {[%clk 0:01:39]} 23. Rxb8+ {[%clk 0:02:21]}  Bf8 {[%clk 0:01:40]} 24. Rb3 {[%clk 0:02:01]}  g6 {[%clk 0:01:40]} 25. Qd1 {[%clk 0:02:00]}  Bd6 {[%clk 0:01:38]} 26. Qe2 {[%clk 0:01:58]}  Kg7 {[%clk 0:01:38]} 27. Reb1 {[%clk 0:01:58]}  h5 {[%clk 0:01:28]} 28. c3 {[%clk 0:01:53]}  c4 {[%clk 0:01:15]} 29. dxc4 {[%clk 0:01:49]}  d3 {[%clk 0:01:15]} 30. Qd2 {[%clk 0:01:28]}  e5 {[%clk 0:01:03]} 31. fxe5 {[%clk 0:01:23]}  Bxe5 {[%clk 0:01:04]} 32. Re1 {[%clk 0:01:08]}  Nc5 {[%clk 0:00:58]} 33. Rbb1 {[%clk 0:01:08]}  Rxa3 {[%clk 0:00:55]} 34. Bb2 {[%clk 0:01:08]}  Ra2 {[%clk 0:00:54]} 35. Qe3 {[%clk 0:01:04]}  Na4 {[%clk 0:00:20]} 36. Bc1 {[%clk 0:01:02]}  Ng4 {[%clk 0:00:17]} 37. Qxd3 {[%clk 0:01:02]}  Nxc3 {[%clk 0:00:11]} 38. Rb2 {[%clk 0:00:57]}  Rxb2 {[%clk 0:00:09]} 39. Bxb2 {[%clk 0:00:58]}  Qb6 {[%clk 0:00:10]} 40. Bxc3 {[%clk 0:00:52]}  Qxf2+ {[%clk 0:00:09]} 41. Kh1 {[%clk 0:00:53]}  Kh7 {[%clk 0:00:04]} 42. Rf1 {[%clk 0:00:45]}  Qc5 {[%clk 0:00:03]} 43. Rxf7+ {[%clk 0:00:41]}  Kh6 {[%clk 0:00:02]} 44. Bd2+ {[%clk 0:00:40]}  g5 {[%clk 0:00:02]} 45. Qh7# {[%clk 0:00:40]} 1-0


[Site "https://www.chess.com"]

[Event "Titled Tuesday Blitz October 25 Early 2022"]
[White "Skliarov, Viktor"]
[Black "Maghsoodloo, Parham"]
[WhiteFideId "14106736"]
[BlackFideId "12539929"]
[WhiteElo "2284"]
[BlackElo "2676"]
[Result "0-1"]
[Round "02"]
[TimeControl "180+1"]
[Date "2022.10.25"]
[WhiteClock "0:00:12"]
[BlackClock "0:01:41"]

1. e4 {[%clk 0:03:00]}  c5 {[%clk 0:02:58]} 2. Nf3 {[%clk 0:03:00]}  e6 {[%clk 0:02:58]} 3. c3 {[%clk 0:03:01]}  Nf6 {[%clk 0:02:56]} 4. Bd3 {[%clk 0:03:00]}  d5 {[%clk 0:02:56]} 5. e5 {[%clk 0:03:01]}  Nfd7 {[%clk 0:02:56]} 6. Bc2 {[%clk 0:03:01]}  d4 {[%clk 0:02:57]} 7. d3 {[%clk 0:02:24]}  Nc6 {[%clk 0:02:50]} 8. Ba4 {[%clk 0:02:23]}  Qc7 {[%clk 0:02:45]} 9. Bf4 {[%clk 0:02:19]}  a6 {[%clk 0:02:44]} 10. Bxc6 {[%clk 0:02:14]}  Qxc6 {[%clk 0:02:44]} 11. c4 {[%clk 0:02:11]}  b5 {[%clk 0:02:44]} 12. b3 {[%clk 0:02:07]}  Bb7 {[%clk 0:02:42]} 13. Nbd2 {[%clk 0:02:06]}  Be7 {[%clk 0:02:41]} 14. Ne4 {[%clk 0:02:01]}  f5 {[%clk 0:02:40]} 15. exf6 {[%clk 0:01:58]}  gxf6 {[%clk 0:02:40]} 16. Nh4 {[%clk 0:01:37]}  O-O-O {[%clk 0:02:39]} 17. cxb5 {[%clk 0:01:32]}  axb5 {[%clk 0:02:38]} 18. a4 {[%clk 0:01:29]}  b4 {[%clk 0:02:32]} 19. Rc1 {[%clk 0:01:25]}  Rhg8 {[%clk 0:02:28]} 20. Qh5 {[%clk 0:00:56]}  f5 {[%clk 0:02:10]} 21. Ng5 {[%clk 0:00:49]}  Rde8 {[%clk 0:02:07]} 22. Nhf3 {[%clk 0:00:36]}  e5 {[%clk 0:02:07]} 23. Bd2 {[%clk 0:00:36]}  Bxg5 {[%clk 0:02:04]} 24. Bxg5 {[%clk 0:00:29]}  Qg6 {[%clk 0:02:03]} 25. Qxg6 {[%clk 0:00:25]}  Rxg6 {[%clk 0:02:03]} 26. h4 {[%clk 0:00:24]}  h6 {[%clk 0:02:03]} 27. h5 {[%clk 0:00:23]}  Rxg5 {[%clk 0:02:03]} 28. Nxg5 {[%clk 0:00:23]}  hxg5 {[%clk 0:02:04]} 29. h6 {[%clk 0:00:24]}  Rh8 {[%clk 0:02:03]} 30. Rh5 {[%clk 0:00:21]}  Kc7 {[%clk 0:01:53]} 31. Rxg5 {[%clk 0:00:17]}  Rxh6 {[%clk 0:01:53]} 32. Rxf5 {[%clk 0:00:18]}  Bxg2 {[%clk 0:01:52]} 33. Kd2 {[%clk 0:00:17]}  Bd5 {[%clk 0:01:52]} 34. Rb1 {[%clk 0:00:16]}  Kd6 {[%clk 0:01:47]} 35. a5 {[%clk 0:00:16]}  Kc6 {[%clk 0:01:47]} 36. a6 {[%clk 0:00:15]}  Kb6 {[%clk 0:01:46]} 37. Ra1 {[%clk 0:00:16]}  Ka7 {[%clk 0:01:46]} 38. Rg5 {[%clk 0:00:15]}  Rxa6 {[%clk 0:01:45]} 39. Rxa6+ {[%clk 0:00:15]}  Kxa6 {[%clk 0:01:45]} 40. f4 {[%clk 0:00:15]}  Bxb3 {[%clk 0:01:43]} 41. fxe5 {[%clk 0:00:15]}  Kb7 {[%clk 0:01:43]} 42. Rg7 {[%clk 0:00:13]}  Kc8 {[%clk 0:01:42]} 43. Re7 {[%clk 0:00:13]}  Kd8 {[%clk 0:01:42]} 44. Rg7 {[%clk 0:00:13]}  Nxe5 {[%clk 0:01:42]} 45. Ke2 {[%clk 0:00:13]}  Bc2 {[%clk 0:01:42]} 46. Rb7 {[%clk 0:00:12]}  b3 {[%clk 0:01:41]} 0-1


[Site "https://www.chess.com"]

[Event "Titled Tuesday Blitz October 25 Early 2022"]
[White "Vlassov, Nikolai"]
[Black "Madaminov, Mukhiddin"]
[WhiteFideId "4103360"]
[BlackFideId "14210703"]
[WhiteElo "2324"]
[BlackElo "2341"]
[Result "0-1"]
[Round "02"]
[TimeControl "180+1"]
[Date "2022.10.25"]
[WhiteClock "0:00:06"]
[BlackClock "0:00:07"]

1. e4 {[%clk 0:03:00]}  e5 {[%clk 0:02:59]} 2. Bc4 {[%clk 0:03:00]}  Nf6 {[%clk 0:02:59]} 3. d3 {[%clk 0:03:00]}  Nc6 {[%clk 0:02:59]} 4. Nf3 {[%clk 0:03:00]}  h6 {[%clk 0:02:56]} 5. Nc3 {[%clk 0:02:56]}  d6 {[%clk 0:02:53]} 6. h3 {[%clk 0:02:56]}  Na5 {[%clk 0:02:51]} 7. Be3 {[%clk 0:02:55]}  c6 {[%clk 0:02:44]} 8. Qe2 {[%clk 0:02:51]}  Be7 {[%clk 0:02:40]} 9. d4 {[%clk 0:02:37]}  Nxc4 {[%clk 0:02:25]} 10. Qxc4 {[%clk 0:02:37]}  Nxe4 {[%clk 0:02:26]} 11. Nxe4 {[%clk 0:02:34]}  d5 {[%clk 0:02:26]} 12. Qd3 {[%clk 0:02:29]}  f5 {[%clk 0:02:26]} 13. Nxe5 {[%clk 0:02:27]}  fxe4 {[%clk 0:02:25]} 14. Qe2 {[%clk 0:02:26]}  O-O {[%clk 0:02:23]} 15. O-O {[%clk 0:02:14]}  Bd6 {[%clk 0:02:21]} 16. f3 {[%clk 0:02:12]}  Bf5 {[%clk 0:02:19]} 17. fxe4 {[%clk 0:02:11]}  Bxe4 {[%clk 0:02:20]} 18. Rxf8+ {[%clk 0:02:11]}  Qxf8 {[%clk 0:02:18]} 19. Rf1 {[%clk 0:02:11]}  Qe7 {[%clk 0:02:19]} 20. Bf4 {[%clk 0:02:07]}  Rf8 {[%clk 0:02:16]} 21. Bg3 {[%clk 0:02:05]}  Rxf1+ {[%clk 0:02:12]} 22. Kxf1 {[%clk 0:02:05]}  c5 {[%clk 0:02:07]} 23. c3 {[%clk 0:02:04]}  Qg5 {[%clk 0:02:01]} 24. Qe1 {[%clk 0:01:30]}  cxd4 {[%clk 0:01:40]} 25. cxd4 {[%clk 0:01:30]}  Bxe5 {[%clk 0:00:33]} 26. dxe5 {[%clk 0:01:27]}  h5 {[%clk 0:00:33]} 27. h4 {[%clk 0:01:22]}  Qf5+ {[%clk 0:00:33]} 28. Kg1 {[%clk 0:01:22]}  d4 {[%clk 0:00:34]} 29. Qf2 {[%clk 0:01:10]}  Qg4 {[%clk 0:00:33]} 30. Kh2 {[%clk 0:01:08]}  d3 {[%clk 0:00:34]} 31. Qd2 {[%clk 0:00:58]}  Qe6 {[%clk 0:00:27]} 32. b3 {[%clk 0:00:49]}  Qd5 {[%clk 0:00:28]} 33. Bf4 {[%clk 0:00:47]}  Bf5 {[%clk 0:00:26]} 34. Qe3 {[%clk 0:00:40]}  a6 {[%clk 0:00:26]} 35. Kg3 {[%clk 0:00:36]}  Be4 {[%clk 0:00:25]} 36. Qd2 {[%clk 0:00:35]}  Qd7 {[%clk 0:00:25]} 37. Kh2 {[%clk 0:00:35]}  Qg4 {[%clk 0:00:25]} 38. Bg3 {[%clk 0:00:34]}  Kh7 {[%clk 0:00:26]} 39. Be1 {[%clk 0:00:25]}  Bg6 {[%clk 0:00:22]} 40. Qf2 {[%clk 0:00:24]}  Be4 {[%clk 0:00:11]} 41. Bd2 {[%clk 0:00:19]}  Qg6 {[%clk 0:00:11]} 42. Qg3 {[%clk 0:00:17]}  Qe6 {[%clk 0:00:11]} 43. Qf4 {[%clk 0:00:16]}  Bg6 {[%clk 0:00:11]} 44. Qe3 {[%clk 0:00:14]}  Kg8 {[%clk 0:00:09]} 45. Kg1 {[%clk 0:00:13]}  Qg4 {[%clk 0:00:09]} 46. Qf4 {[%clk 0:00:12]}  Qe2 {[%clk 0:00:09]} 47. Kh2 {[%clk 0:00:13]}  Be4 {[%clk 0:00:09]} 48. Qg5 {[%clk 0:00:12]}  Kh7 {[%clk 0:00:06]} 49. e6 {[%clk 0:00:12]}  Bg6 {[%clk 0:00:05]} 50. e7 {[%clk 0:00:13]}  Qe6 {[%clk 0:00:05]} 51. Qe3 {[%clk 0:00:13]}  Qc6 {[%clk 0:00:04]} 52. Kg1 {[%clk 0:00:12]}  Kg8 {[%clk 0:00:04]} 53. Kh2 {[%clk 0:00:12]}  Kf7 {[%clk 0:00:04]} 54. Kg1 {[%clk 0:00:13]}  Ke8 {[%clk 0:00:05]} 55. Bb4 {[%clk 0:00:11]}  Be4 {[%clk 0:00:05]} 56. Qd4 {[%clk 0:00:11]}  Qc1+ {[%clk 0:00:05]} 57. Kh2 {[%clk 0:00:10]}  Qf4+ {[%clk 0:00:06]} 58. Kg1 {[%clk 0:00:11]}  Qc1+ {[%clk 0:00:06]} 59. Kh2 {[%clk 0:00:11]}  Qc7+ {[%clk 0:00:07]} 60. Kg1 {[%clk 0:00:11]}  Bf5 {[%clk 0:00:06]} 61. Qxg7 {[%clk 0:00:10]}  Qc1+ {[%clk 0:00:06]} 62. Kh2 {[%clk 0:00:11]}  Qf4+ {[%clk 0:00:06]} 63. Qg3 {[%clk 0:00:11]}  Qxb4 {[%clk 0:00:06]} 64. Qe5 {[%clk 0:00:06]}  Qxh4+ {[%clk 0:00:06]} 65. Kg1 {[%clk 0:00:06]}  Qe4 {[%clk 0:00:06]} 66. Qb8+ {[%clk 0:00:05]}  Kxe7 {[%clk 0:00:07]} 67. Qc7+ {[%clk 0:00:05]}  Kf6 {[%clk 0:00:07]} 68. Qd8+ {[%clk 0:00:05]}  Kg6 {[%clk 0:00:08]} 69. Qg8+ {[%clk 0:00:05]}  Kf6 {[%clk 0:00:08]} 70. Qd8+ {[%clk 0:00:06]}  Ke5 {[%clk 0:00:09]} 71. Qh8+ {[%clk 0:00:05]}  Kf4 {[%clk 0:00:09]} 72. Qh6+ {[%clk 0:00:06]}  Kg4 {[%clk 0:00:07]} 73. Qh7 {[%clk 0:00:06]}  Bxh7 {[%clk 0:00:07]} 0-1


[Site "https://www.chess.com"]

[Event "Titled Tuesday Blitz October 25 Early 2022"]
[White "Bagrationi, Alexander"]
[Black "Keymer, Vincent"]
[WhiteFideId "14104954"]
[BlackFideId "12940690"]
[WhiteElo "2398"]
[BlackElo "2600"]
[Result "1/2-1/2"]
[Round "03"]
[TimeControl "180+1"]
[Date "2022.10.25"]
[WhiteClock "0:00:08"]
[BlackClock "0:00:04"]

1. d4 {[%clk 0:02:55]}  Nf6 {[%clk 0:02:59]} 2. Nf3 {[%clk 0:02:53]}  d5 {[%clk 0:02:58]} 3. g3 {[%clk 0:02:47]}  Bf5 {[%clk 0:02:56]} 4. Bg2 {[%clk 0:02:47]}  e6 {[%clk 0:02:51]} 5. O-O {[%clk 0:02:47]}  h6 {[%clk 0:02:50]} 6. c4 {[%clk 0:02:47]}  c6 {[%clk 0:02:47]} 7. b3 {[%clk 0:02:46]}  Nbd7 {[%clk 0:02:41]} 8. Bb2 {[%clk 0:02:45]}  Be7 {[%clk 0:02:34]} 9. Nbd2 {[%clk 0:02:43]}  O-O {[%clk 0:02:34]} 10. e3 {[%clk 0:02:40]}  a5 {[%clk 0:02:33]} 11. a3 {[%clk 0:02:36]}  a4 {[%clk 0:02:28]} 12. cxd5 {[%clk 0:02:29]}  cxd5 {[%clk 0:01:55]} 13. b4 {[%clk 0:02:12]}  Nb6 {[%clk 0:01:43]} 14. Rc1 {[%clk 0:02:11]}  Rc8 {[%clk 0:01:41]} 15. Ne5 {[%clk 0:02:11]}  Nfd7 {[%clk 0:01:40]} 16. Qe2 {[%clk 0:02:09]}  Bc2 {[%clk 0:01:16]} 17. Qb5 {[%clk 0:01:52]}  Bd6 {[%clk 0:00:42]} 18. Bf3 {[%clk 0:01:20]}  Bxe5 {[%clk 0:00:23]} 19. dxe5 {[%clk 0:01:20]}  Rc6 {[%clk 0:00:24]} 20. Bd4 {[%clk 0:01:17]}  Qc7 {[%clk 0:00:24]} 21. Be2 {[%clk 0:01:08]}  Rc8 {[%clk 0:00:22]} 22. f4 {[%clk 0:01:08]}  Bh7 {[%clk 0:00:14]} 23. Rxc6 {[%clk 0:00:49]}  bxc6 {[%clk 0:00:15]} 24. Bxb6 {[%clk 0:00:46]}  Nxb6 {[%clk 0:00:15]} 25. Qc5 {[%clk 0:00:46]}  Nd7 {[%clk 0:00:15]} 26. Qc3 {[%clk 0:00:46]}  c5 {[%clk 0:00:15]} 27. Rc1 {[%clk 0:00:45]}  c4 {[%clk 0:00:15]} 28. Nf3 {[%clk 0:00:45]}  Be4 {[%clk 0:00:14]} 29. Nd4 {[%clk 0:00:45]}  Nb8 {[%clk 0:00:13]} 30. g4 {[%clk 0:00:44]}  Qa7 {[%clk 0:00:12]} 31. Nb5 {[%clk 0:00:41]}  Qa6 {[%clk 0:00:06]} 32. Nd6 {[%clk 0:00:41]}  Rc7 {[%clk 0:00:06]} 33. Nxe4 {[%clk 0:00:36]}  dxe4 {[%clk 0:00:07]} 34. Bxc4 {[%clk 0:00:37]}  Qb7 {[%clk 0:00:07]} 35. Qd4 {[%clk 0:00:37]}  Nc6 {[%clk 0:00:07]} 36. Qc5 {[%clk 0:00:36]}  Ne7 {[%clk 0:00:07]} 37. Qd4 {[%clk 0:00:33]}  h5 {[%clk 0:00:06]} 38. h3 {[%clk 0:00:31]}  Qc8 {[%clk 0:00:05]} 39. b5 {[%clk 0:00:29]}  Nd5 {[%clk 0:00:05]} 40. b6 {[%clk 0:00:27]}  Nxb6 {[%clk 0:00:05]} 41. Qxb6 {[%clk 0:00:24]}  Rxc4 {[%clk 0:00:05]} 42. Rxc4 {[%clk 0:00:25]}  Qxc4 {[%clk 0:00:06]} 43. Qd4 {[%clk 0:00:12]}  Qc1+ {[%clk 0:00:05]} 44. Kf2 {[%clk 0:00:13]}  Qxa3 {[%clk 0:00:06]} 45. gxh5 {[%clk 0:00:11]}  Qb3 {[%clk 0:00:05]} 46. h6 {[%clk 0:00:11]}  a3 {[%clk 0:00:03]} 47. Qd8+ {[%clk 0:00:11]}  Kh7 {[%clk 0:00:04]} 48. Qg5 {[%clk 0:00:10]}  gxh6 {[%clk 0:00:03]} 49. Qe7 {[%clk 0:00:10]}  Qb2+ {[%clk 0:00:04]} 50. Kg3 {[%clk 0:00:09]}  Kg8 {[%clk 0:00:02]} 51. Qd8+ {[%clk 0:00:08]}  Kh7 {[%clk 0:00:02]} 52. Qe7 {[%clk 0:00:08]}  Qb8 {[%clk 0:00:02]} 53. Qxf7+ {[%clk 0:00:07]}  Kh8 {[%clk 0:00:03]} 54. Qf6+ {[%clk 0:00:08]}  Kg8 {[%clk 0:00:02]} 55. Qxe6+ {[%clk 0:00:08]}  Kf8 {[%clk 0:00:03]} 56. Qf6+ {[%clk 0:00:07]}  Kg8 {[%clk 0:00:03]} 57. Qe6+ {[%clk 0:00:08]}  Kh8 {[%clk 0:00:04]} 58. Qf6+ {[%clk 0:00:08]}  Kg8 {[%clk 0:00:04]} 59. Qe6+ {[%clk 0:00:08]} 1/2-1/2


[Site "https://www.chess.com"]